bitfinex/quotes_SOLUSD_20240712
["timestamp","ask_amount","ask_price","bid_price","bid_amount"]
[1720786647552,0.8472455,136.41,136.39,20.0]
[1720786647714,0.8472455,136.41,136.4,1.45462262]
[1720786647917,0.8472455,136.41,136.39,1.46602986]
[1720786648224,0.8472455,136.41,136.4,1.4659896]
[1720786653850,0.8472455,136.41,136.4,30.6259896]
[1720786654052,0.8472455,136.41,136.4,75.6259896]
[1720786654437,0.8472455,136.41,136.4,74.16]
[1720786654825,0.8472455,136.41,136.4,94.16]
[1720786655129,0.8472455,136.41,136.4,65.0]
[1720786655331,0.8472455,136.41,136.4,66.46559195]
[1720786655633,0.8472455,136.41,136.38,29.16]
[1720786655825,0.8472455,136.41,136.39,65.0]
[1720786656847,0.8472455,136.41,136.33,6.6239]
[1720786657065,0.8472455,136.41,136.35,29.16]
[1720786657231,0.8472455,136.41,136.36,1.4628312]
[1720786657567,0.8472455,136.41,136.39,29.16]
[1720786657732,0.8472455,136.41,136.4,1.46580554]
[1720786657933,0.8472455,136.41,136.39,29.16]
[1720786658146,0.8472455,136.41,136.37,29.16]
[1720786658329,0.8472455,136.41,136.38,20.0]
[1720786658659,0.8472455,136.41,136.39,29.59039844]
[1720786658865,0.8472455,136.41,136.4,0.43036688]
[1720786659235,0.8472455,136.41,136.4,0.76477541]
[1720786659657,0.8472455,136.41,136.4,45.76477541]
[1720786659850,0.8472455,136.41,136.4,65.76477541]
[1720786661062,0.3949455,136.41,136.4,65.76477541]
[1720786661874,15.4691,136.49,136.4,65.76477541]
[1720786662055,15.4691,136.49,136.43,29.16]
[1720786665045,22.7956,136.49,136.4,29.16]
[1720786665272,22.7956,136.49,136.41,45.0]
[1720786665475,15.4691,136.49,136.42,20.0]
[1720786665844,15.4691,136.49,136.43,45.0]
[1720786666558,15.4691,136.49,136.42,20.0]
[1720786666759,22.7957,136.49,136.43,1.46563392]
[1720786666976,22.7957,136.49,136.42,45.0]
[1720786667153,15.4691,136.49,136.42,45.0]
[1720786667355,7.3271,136.48,136.4,29.16]
[1720786667746,7.3276,136.47,136.4,29.16]
[1720786668274,7.3276,136.47,136.36,35.176]
[1720786668275,7.3276,136.47,136.38,29.16]
[1720786668654,7.3273,136.48,136.38,29.16]
[1720786668849,7.3273,136.48,136.39,45.0]
[1720786669348,15.4691,136.49,136.41,29.16]
[1720786669556,22.7959,136.49,136.41,29.16]
[1720786669761,7.3272,136.48,136.41,29.16]
[1720786669970,15.4691,136.49,136.41,29.16]
[1720786670169,22.7959,136.49,136.41,29.16]
[1720786670468,15.4691,136.49,136.41,29.16]
[1720786670648,7.3274,136.48,136.41,29.16]
[1720786670847,15.4691,136.49,136.41,29.16]
[1720786671058,15.4691,136.49,136.42,45.0]
[1720786672085,15.4691,136.49,136.41,29.16]
[1720786672243,7.3271,136.48,136.42,20.0]
[1720786672444,7.3271,136.48,136.42,21.46508937]
[1720786672774,15.11,136.46,136.39,29.16]
[1720786672962,15.11,136.46,136.4,21.46590882]
[1720786673677,15.11,136.46,136.4,50.62590882]
[1720786673971,15.11,136.46,136.4,49.16]
[1720786675174,15.11,136.46,136.41,1.46425451]
[1720786675846,15.11,136.46,136.41,46.46425451]
[1720786677179,15.11,136.46,136.4,49.16]
[1720786678272,15.11,136.46,136.41,1.46456189]
[1720786679369,15.11,136.46,136.38,29.16]
[1720786679559,15.11,136.46,136.39,45.0]
[1720786680179,6.4532,136.45,136.39,45.0]
[1720786680359,6.4532,136.45,136.38,29.16]
[1720786680783,6.4532,136.45,136.39,1.46374742]
[1720786680984,6.4532,136.45,136.4,1.4636401]
[1720786681176,6.4532,136.45,136.38,29.16]
[1720786681374,6.4532,136.45,136.39,20.0]
[1720786681561,6.4532,136.45,136.4,0.49766633]
[1720786681758,6.4532,136.45,136.4,45.0]
[1720786681965,6.4532,136.45,136.4,74.16]
[1720786682166,6.4532,136.45,136.4,45.0]
[1720786682381,6.4532,136.45,136.39,20.0]
[1720786682895,6.4532,136.45,136.4,1.46603435]
[1720786683471,6.4532,136.45,136.39,20.0]
[1720786683688,6.4532,136.45,136.4,45.0]
[1720786684583,15.11,136.46,136.41,20.0]
[1720786684906,15.11,136.46,136.42,74.16]
[1720786685200,15.11,136.46,136.43,1.45163251]
[1720786685400,15.11,136.46,136.42,29.16]
[1720786685603,15.11,136.46,136.43,20.0]
[1720786686380,15.11,136.46,136.41,20.0]
[1720786686582,15.11,136.46,136.42,45.96248638]
[1720786686896,15.11,136.46,136.43,20.96289029]
[1720786688011,6.4895,136.49,136.44,74.16]
[1720786688512,6.4895,136.49,136.45,20.0]
[1720786688805,6.4895,136.49,136.44,1.46513995]
[1720786689378,6.4895,136.49,136.43,65.0]
[1720786690881,6.4895,136.49,136.44,29.16]
[1720786691085,6.4895,136.49,136.45,65.0]
[1720786691881,0.2,136.49,136.46,1.08550361]
[1720786692101,0.2,136.49,136.48,29.16]
[1720786692285,0.2,136.49,136.48,94.16]
[1720786693406,0.8472455,136.54,136.48,102.03389465]
[1720786693587,0.8472455,136.54,136.53,29.16]
[1720786693900,0.8472455,136.54,136.53,94.16]
[1720786694596,0.8472455,136.54,136.53,20.0]
[1720786694788,0.8472455,136.54,136.51,21.46425723]
[1720786694997,0.8472455,136.54,136.52,46.46414997]
[1720786695186,0.8472455,136.54,136.53,20.0]
[1720786696907,0.8472455,136.54,136.53,21.46461194]
[1720786697213,0.8472455,136.54,136.53,20.0]
[1720786698726,0.8472455,136.54,136.5,29.16]
[1720786698887,0.8472455,136.54,136.51,20.0]
[1720786699386,0.8472455,136.54,136.52,45.0]
[1720786700290,0.8472455,136.54,136.51,20.0]
[1720786701409,0.8472455,136.54,136.52,1.09076862]
[1720786701908,0.8472455,136.54,136.52,46.09076862]
[1720786702119,0.8472455,136.54,136.53,20.0]
[1720786702320,0.8472455,136.54,136.53,45.0]
[1720786702503,0.8472455,136.54,136.53,65.0]
[1720786703395,0.8472455,136.54,136.53,20.0]
[1720786703720,0.8472455,136.54,136.51,21.46435419]
[1720786704419,0.8472455,136.54,136.52,1.46424692]
[1720786705009,0.8472455,136.54,136.51,45.0]
[1720786705209,0.8472455,136.54,136.52,30.62463967]
[1720786705419,0.8472455,136.54,136.53,45.0]
[1720786706114,0.8472455,136.54,136.53,66.46455062]
[1720786706314,0.8472455,136.54,136.53,20.0]
[1720786706931,0.8472455,136.54,136.51,20.0]
[1720786707121,0.8472455,136.54,136.52,74.16]
[1720786707301,0.8472455,136.54,136.53,20.0]
[1720786707628,0.8472455,136.54,136.53,65.0]
[1720786709326,0.8472455,136.54,136.53,66.46445257]
[1720786709710,15.4035,136.58,136.53,66.46445257]
[1720786709913,15.4035,136.58,136.55,29.16]
[1720786710226,15.4035,136.58,136.56,21.46421925]
[1720786710403,15.4035,136.58,136.56,20.0]
[1720786710826,15.4035,136.58,136.54,21.46324958]
[1720786711218,15.4035,136.58,136.55,1.46314253]
[1720786711631,15.4035,136.58,136.54,20.0]
[1720786711949,15.4035,136.58,136.55,1.00199901]
[1720786712314,15.4035,136.58,136.55,75.16199901]
[1720786712506,15.4035,136.58,136.56,20.0]
[1720786712702,0.2,136.59,136.57,46.24599079]
[1720786712907,0.2,136.59,136.58,1.24589956]
[1720786713142,0.2,136.59,136.57,45.0]
[1720786713510,0.2,136.59,136.58,20.0]
[1720786713717,0.2,136.59,136.58,66.46397708]
[1720786717430,0.2,136.59,136.58,1.46397708]
[1720786717623,0.2,136.59,136.55,29.16]
[1720786717820,0.2,136.59,136.56,45.0]
[1720786718416,0.2,136.59,136.55,29.16]
[1720786718838,0.2,136.59,136.56,45.0]
[1720786721121,0.2,136.59,136.57,1.46410575]
[1720786721855,0.2,136.59,136.56,45.0]
[1720786722422,0.2,136.59,136.55,29.16]
[1720786723593,0.2,136.59,136.5,29.16]
[1720786723727,0.2,136.59,136.53,29.16]
[1720786723930,0.2,136.59,136.54,20.0]
[1720786724258,0.2,136.59,136.55,1.46436002]
[1720786724825,6.0268,136.58,136.54,1.46436002]
[1720786725032,16.4346,136.57,136.5,29.16]
[1720786726048,16.4346,136.57,136.48,36.43340387]
[1720786726251,16.4346,136.57,136.48,29.16]
[1720786726450,16.4346,136.57,136.49,1.46341069]
[1720786726825,16.4346,136.57,136.49,21.46341069]
[1720786728263,7.3229,136.56,136.49,1.46341069]
[1720786728456,6.4296,136.55,136.45,29.16]
[1720786728665,16.6229,136.53,136.45,29.16]
[1720786728971,16.6229,136.53,136.43,29.16]
[1720786729376,16.6229,136.53,136.44,1.46526716]
[1720786729667,16.6229,136.53,136.45,29.16]
[1720786729851,16.6229,136.53,136.46,1.46528103]
[1720786730168,23.9473,136.53,136.46,1.46528103]
[1720786730541,23.9473,136.53,136.43,29.16]
[1720786730867,16.6229,136.53,136.43,29.16]
[1720786731089,16.6229,136.53,136.44,20.0]
[1720786731450,23.9473,136.53,136.44,20.0]
[1720786731766,16.6229,136.53,136.44,20.0]
[1720786732268,16.6229,136.53,136.45,30.62297201]
[1720786732459,16.6229,136.53,136.46,65.0]
[1720786733060,16.6229,136.53,136.47,29.70977869]
[1720786733460,16.6229,136.53,136.48,1.46490783]
[1720786733656,16.6229,136.53,136.49,1.4648005]
[1720786735557,16.6229,136.53,136.49,46.4648005]
[1720786735773,16.6229,136.53,136.49,75.6248005]
[1720786736376,16.6229,136.53,136.51,29.16]
[1720786736580,16.6229,136.53,136.52,45.0]
[1720786736752,16.3729,136.53,136.52,46.46474263]
[1720786737383,16.3729,136.53,136.52,65.0]
[1720786738381,16.3729,136.53,136.52,66.46473794]
[1720786738882,6.4296,136.55,136.52,66.46473794]
[1720786739361,6.4296,136.55,136.49,29.16]
[1720786739558,6.4296,136.55,136.5,1.46480199]
[1720786739771,15.3826,136.54,136.5,1.46480199]
[1720786740457,15.3826,136.54,136.48,21.46495651]
[1720786740669,15.3826,136.54,136.49,1.46484958]
[1720786741260,15.3826,136.54,136.45,29.16]
[1720786742076,22.7065,136.54,136.45,29.16]
[1720786742279,7.3251,136.52,136.45,29.16]
[1720786742488,7.3244,136.53,136.43,29.16]
[1720786742977,22.6034,136.52,136.43,29.16]
[1720786743690,15.2785,136.52,136.43,29.16]
[1720786743895,6.6039,136.51,136.43,29.16]
[1720786744076,6.6039,136.51,136.41,7.27340387]
[1720786744077,16.4912,136.5,136.41,7.27340387]
[1720786744267,23.8175,136.5,136.4,29.16]
[1720786744664,7.3265,136.49,136.4,29.16]
[1720786744863,16.4912,136.5,136.4,29.16]
[1720786745088,7.3266,136.49,136.36,280.01957869]
[1720786745292,15.9538,136.48,136.38,29.16]
[1720786745496,15.9538,136.48,136.39,1.46566373]
[1720786745799,15.9538,136.48,136.4,1.46578005]
[1720786746109,13.6466,136.47,136.4,1.46578005]
[1720786746475,13.6467,136.47,136.4,1.46578005]
[1720786746693,15.9257,136.46,136.37,1.46578005]
[1720786746868,15.9257,136.46,136.37,30.62578005]
[1720786747070,15.9257,136.46,136.38,20.0]
[1720786747268,15.9257,136.46,136.39,1.46556515]
[1720786747481,15.9257,136.46,136.4,1.46597541]
[1720786748275,15.9257,136.46,136.4,46.46597541]
[1720786750083,15.9257,136.46,136.4,1.46597541]
[1720786750285,23.2539,136.46,136.4,1.46597541]
[1720786750488,23.2539,136.46,136.38,20.0]
[1720786750489,23.2539,136.46,136.39,1.46597541]
[1720786750802,15.9257,136.46,136.4,1.46586803]
[1720786751798,15.9257,136.46,136.39,46.46586803]
[1720786752094,15.9257,136.46,136.4,1.46576056]
[1720786753676,15.9257,136.46,136.4,21.46576056]
[1720786754087,23.2539,136.46,136.4,21.46576056]
[1720786754601,15.9257,136.46,136.4,21.46576056]
[1720786754895,15.9257,136.46,136.41,1.46592348]
[1720786756395,15.9257,136.46,136.4,45.0]
[1720786756585,15.9257,136.46,136.39,45.0]
[1720786758492,23.254,136.46,136.4,0.5109678]
[1720786758817,15.9257,136.46,136.4,0.5109678]
[1720786762013,15.9257,136.46,136.4,20.5109678]
[1720786762313,15.9257,136.46,136.41,45.0]
[1720786762487,15.9257,136.46,136.4,20.5109678]
[1720786762688,23.2538,136.46,136.4,20.0]
[1720786762903,7.3288,136.45,136.38,20.0]
[1720786763109,6.1847,136.43,136.37,20.0]
[1720786763525,13.5146,136.43,136.36,20.0]
[1720786763902,13.5146,136.43,136.34,20.0]
[1720786764210,16.3062,136.42,136.34,20.0]
[1720786764710,30.7862,136.42,136.34,20.0]
[1720786764887,14.48,136.4,136.33,7.27340387]
[1720786765091,14.48,136.4,136.35,14.48]
[1720786765289,16.3062,136.39,136.35,14.48]
[1720786766120,30.7862,136.39,136.31,259.1]
[1720786766292,6.1847,136.38,136.35,14.48]
[1720786766613,6.1847,136.38,136.26,6.5337]
[1720786766909,15.0797,136.37,136.25,45.68960387]
[1720786767099,15.0797,136.37,136.28,28.99]
[1720786767489,21.7808,136.36,136.26,7.62851599]
[1720786767689,21.7808,136.36,136.28,28.99]
[1720786768112,21.7808,136.36,136.3,28.99]
[1720786768685,21.7808,136.36,136.31,1.4666976]
[1720786768915,21.7808,136.36,136.32,28.99]
[1720786769211,21.7808,136.36,136.33,66.46648243]
[1720786770091,21.7808,136.36,136.31,1.46648243]
[1720786770297,21.7808,136.36,136.31,66.46648243]
[1720786771011,21.7808,136.36,136.31,46.46648243]
[1720786771216,21.7808,136.36,136.32,1.46692748]
[1720786771393,21.7808,136.36,136.31,45.0]
[1720786771394,21.7808,136.36,136.33,1.46679428]
[1720786772297,21.7808,136.36,136.32,1.46669374]
[1720786772501,21.7808,136.36,136.33,1.46555772]
[1720786772693,21.7808,136.36,136.33,46.46555772]
[1720786776323,15.4165,136.36,136.33,46.46555772]
[1720786778921,15.4165,136.36,136.28,28.99]
[1720786780001,15.4165,136.36,136.29,45.0]
[1720786780406,15.4165,136.36,136.3,48.99]
[1720786780598,15.4165,136.36,136.31,45.52408707]
[1720786780824,15.4165,136.36,136.32,20.0]
[1720786781139,15.4165,136.36,136.33,1.46678087]
[1720786782214,15.4165,136.36,136.32,20.0]
[1720786783624,15.4165,136.36,136.31,45.0]
[1720786783934,15.4165,136.36,136.3,28.99]
[1720786784228,15.4165,136.36,136.31,1.46485237]
[1720786786712,15.4165,136.36,136.31,66.46485237]
[1720786788429,15.4165,136.36,136.32,28.99]
[1720786788619,15.4165,136.36,136.33,46.46463747]
[1720786788925,15.4165,136.36,136.33,45.0]
[1720786789718,15.4165,136.36,136.34,1.46670081]
[1720786790034,15.4165,136.36,136.33,1.46670053]
[1720786790431,6.0887,136.35,136.33,1.46670053]
[1720786790615,6.0887,136.35,136.32,46.46675784]
[1720786790948,6.0887,136.35,136.31,21.46675784]
[1720786792330,6.0887,136.35,136.32,1.46690696]
[1720786792733,6.0887,136.35,136.32,21.46690696]
[1720786793332,6.0887,136.35,136.25,7.27340387]
[1720786793632,6.0887,136.35,136.27,28.99]
[1720786795045,6.0887,136.35,136.28,45.0]
[1720786795254,15.1737,136.34,136.25,36.26340387]
[1720786795549,15.1737,136.34,136.25,28.99]
[1720786795974,15.6146,136.33,136.23,28.99]
[1720786796148,22.9498,136.33,136.23,28.99]
[1720786796339,15.6146,136.31,136.23,28.99]
[1720786797265,15.6146,136.31,136.24,1.4674746]
[1720786797433,15.6146,136.31,136.26,28.99]
[1720786797630,15.6146,136.31,136.27,1.46715155]
[1720786798549,15.6146,136.31,136.28,28.99]
[1720786798735,15.6146,136.31,136.29,66.46715793]
[1720786798938,15.6146,136.31,136.3,1.46705028]
[1720786799153,15.6146,136.31,136.29,65.0]
[1720786799154,15.6146,136.31,136.26,28.99]
[1720786799352,15.6146,136.31,136.27,1.46745247]
[1720786799531,15.6146,136.31,136.27,20.0]
[1720786799728,15.6146,136.31,136.27,1.4671294]
[1720786800255,15.6146,136.31,136.26,1.4671294]
[1720786800557,15.6146,136.31,136.27,1.46709991]
[1720786800737,15.6146,136.31,136.27,21.46709991]
[1720786800943,15.6146,136.31,136.27,20.0]
[1720786801351,15.6146,136.31,136.28,1.46741884]
[1720786801864,15.6146,136.31,136.26,1.46738448]
[1720786802055,15.6146,136.31,136.27,1.46738433]
[1720786802540,15.6146,136.31,136.25,45.0]
[1720786803654,15.6146,136.31,136.24,28.99]
[1720786804162,15.6146,136.31,136.25,46.38130027]
[1720786804459,15.6146,136.31,136.25,45.0]
[1720786804647,15.6146,136.31,136.25,0.44572608]
[1720786805034,15.6146,136.31,136.25,45.44572608]
[1720786805234,15.6146,136.31,136.26,1.46744955]
[1720786805461,15.6146,136.31,136.26,1.46734208]
[1720786805662,15.6146,136.31,136.26,20.0]
[1720786805841,15.6146,136.31,136.25,46.46734257]
[1720786806178,15.6146,136.31,136.25,1.46734257]
[1720786806350,15.6146,136.31,136.25,21.46734257]
[1720786806534,22.9511,136.31,136.21,7.12895942]
[1720786806858,15.6146,136.31,136.22,73.99]
[1720786808575,15.6146,136.31,136.23,20.0]
[1720786808737,15.6146,136.31,136.29,28.99]
[1720786808931,15.6146,136.31,136.3,1.27695841]
[1720786809132,21.1509,136.35,136.3,46.27695841]
[1720786809336,22.4083,136.3,136.19,259.1]
[1720786809563,1.27695841,136.29,136.2,0.8472455]
[1720786810858,15.0711,136.3,136.24,28.99]
[1720786811042,15.0711,136.3,136.25,1.46730042]
[1720786815947,15.0711,136.3,136.25,46.46730042]
[1720786816667,15.0711,136.3,136.26,28.99]
[1720786816874,15.0711,136.3,136.27,1.46708506]
[1720786818161,15.0711,136.3,136.25,45.0]
[1720786818363,15.0711,136.3,136.26,1.46732305]
[1720786820281,16.34805841,136.3,136.26,1.46732305]
[1720786820573,16.34805841,136.3,136.25,1.46732305]
[1720786820764,15.0711,136.3,136.25,1.46732305]
[1720786821681,15.0711,136.3,136.25,46.46732305]
[1720786821868,15.0711,136.3,136.26,20.0]
[1720786822052,15.0711,136.3,136.27,1.46727231]
[1720786824878,15.0711,136.3,136.25,21.46742787]
[1720786825090,15.0711,136.3,136.26,45.0]
[1720786825289,15.0711,136.3,136.27,1.46730538]
[1720786825998,15.0711,136.3,136.26,1.46730538]
[1720786826296,15.0711,136.3,136.27,1.46719772]
[1720786826466,15.0711,136.3,136.26,1.46719794]
[1720786826665,15.0711,136.3,136.29,14.5]
[1720786831093,15.0711,136.3,136.28,14.5]
[1720786831300,16.34805841,136.3,136.28,14.5]
[1720786831666,15.0711,136.3,136.28,14.5]
[1720786833997,15.0711,136.3,136.29,14.5]
[1720786834700,16.34805841,136.3,136.25,20.0]
[1720786834993,16.34805841,136.3,136.27,14.5]
[1720786836675,15.0711,136.3,136.27,14.5]
[1720786836875,15.0711,136.3,136.29,14.5]
[1720786837702,1.27695841,136.33,136.29,14.5]
[1720786837996,16.53115841,136.34,136.3,15.237436]
[1720786838183,16.53115841,136.34,136.3,14.5]
[1720786840277,16.53115841,136.34,136.31,14.5]
[1720786840608,15.2542,136.34,136.33,14.5]
[1720786842106,17.28355841,136.37,136.33,14.5]
[1720786842308,17.28355841,136.37,136.34,15.96647903]
[1720786842504,17.28355841,136.37,136.34,14.5]
[1720786843085,17.28355841,136.37,136.35,14.5]
[1720786843511,16.0066,136.37,136.35,14.5]
[1720786844496,6.1041,136.39,136.29,58.0]
[1720786844497,7.38105841,136.39,136.36,14.5]
[1720786844715,7.38105841,136.39,136.37,14.5]
[1720786845519,6.1041,136.39,136.37,14.5]
[1720786845691,6.1041,136.39,136.36,14.5]
[1720786846819,6.1041,136.39,136.37,14.5]
[1720786848305,1.27695841,136.4,136.37,14.5]
[1720786848514,16.3751,136.41,136.38,14.5]
[1720786848822,17.65205841,136.41,136.38,14.5]
[1720786850111,16.3751,136.41,136.38,14.5]
[1720786850424,16.3751,136.41,136.39,1.46622311]
[1720786850631,16.3751,136.41,136.4,14.5]
[1720786850797,7.69115841,136.43,136.4,14.5]
[1720786850993,7.69115841,136.43,136.41,14.5]
[1720786852829,16.4735,136.44,136.42,14.5]
[1720786855542,16.4735,136.44,136.43,14.5]
[1720786855724,15.019,136.48,136.43,14.5]
[1720786856038,15.019,136.48,136.46,14.5]
[1720786856331,38.12315841,136.48,136.35,21.5011]
[1720786856542,14.5,136.47,136.43,14.5]
[1720786856836,16.29595841,136.48,136.45,14.5]
[1720786857010,16.29595841,136.48,136.36,123.0]
[1720786857205,14.5,136.46,136.35,21.5011]
[1720786857431,15.77695841,136.45,136.41,14.5]
[1720786858305,1.27695841,136.45,136.41,14.5]
[1720786858526,15.77695841,136.47,136.43,14.5]
[1720786859119,29.519,136.48,136.44,14.5]
[1720786859319,30.79595841,136.48,136.44,14.5]
[1720786859732,16.29595841,136.48,136.44,14.5]
[1720786860038,15.019,136.48,136.45,15.82076763]
[1720786860230,15.019,136.48,136.46,14.5]
[1720786860438,15.019,136.48,136.45,14.5]
[1720786860932,15.019,136.48,136.46,15.82146459]
[1720786861945,15.019,136.48,136.46,14.5]
[1720786862162,15.019,136.48,136.37,22.07]
[1720786862163,16.4753,136.52,136.47,1.45219136]
[1720786862322,16.4753,136.52,136.5,14.5]
[1720786862641,16.4753,136.52,136.51,14.5]
[1720786863532,17.75225841,136.52,136.41,15.6972]
[1720786863717,17.75225841,136.52,136.45,14.5]
[1720786863718,14.5,136.5,136.45,14.5]
[1720786863920,15.77695841,136.49,136.43,1.45643307]
[1720786864113,15.77695841,136.49,136.45,14.5]
[1720786864523,23.10345841,136.49,136.44,14.5]
[1720786864718,15.77695841,136.49,136.38,22.1097]
[1720786864955,1.27695841,136.51,136.43,58.0]
[1720786865129,1.27695841,136.51,136.48,14.5]
[1720786867024,17.75225841,136.52,136.49,14.5]
[1720786867225,17.75225841,136.52,136.5,14.5]
[1720786867736,16.4753,136.52,136.5,14.5]
[1720786867938,16.4007,136.56,136.51,15.96290801]
[1720786868234,1.27695841,136.55,136.53,14.5]
[1720786869314,7.3242,136.54,136.43,15.7365]
[1720786869514,1.27695841,136.55,136.53,14.5]
[1720786870523,1.27695841,136.55,136.45,6.2882]
[1720786870713,1.27695841,136.55,136.48,28.91]
[1720786870917,1.27695841,136.55,136.49,65.0]
[1720786871118,1.27695841,136.55,136.5,1.46480995]
[1720786871316,1.27695841,136.55,136.49,65.0]
[1720786871938,1.27695841,136.55,136.49,45.0]
[1720786874343,1.27695841,136.54,136.49,45.0]
[1720786874648,1.27695841,136.55,136.49,45.0]
[1720786877034,0.2,136.59,136.53,28.91]
[1720786877235,0.2,136.59,136.54,66.46310248]
[1720786877439,0.2,136.59,136.55,1.46299533]
[1720786878036,0.2,136.59,136.55,30.37299533]
[1720786878237,0.2,136.59,136.56,65.0]
[1720786878454,0.2,136.59,136.57,1.46278108]
[1720786878634,0.2,136.59,136.58,1.46267397]
[1720786878835,0.2,136.59,136.5,15.5336]
[1720786879154,0.2,136.59,136.51,93.91]
[1720786882427,16.612,136.58,136.51,93.91]
[1720786882846,8.59945841,136.57,136.47,28.91]
[1720786883161,7.3228,136.56,136.47,28.91]
[1720786883474,1.27695841,136.55,136.47,28.91]
[1720786884129,1.27695841,136.55,136.48,20.0]
[1720786884462,1.27695841,136.55,136.49,0.46164812]
[1720786884758,1.27695841,136.55,136.48,20.0]
[1720786884964,1.27695841,136.54,136.43,22.8615]
[1720786885137,8.59985841,136.56,136.45,28.91]
[1720786885939,1.27695841,136.56,136.45,28.91]
[1720786886133,1.27695841,136.55,136.45,28.91]
[1720786886354,1.27695841,136.54,136.46,20.0]
[1720786886548,1.27695841,136.55,136.46,20.0]
[1720786886736,7.56375841,136.54,136.45,28.91]
[1720786888159,7.56375841,136.54,136.47,28.91]
[1720786888362,7.56375841,136.54,136.48,45.0]
[1720786889939,6.2868,136.54,136.49,1.46490666]
[1720786890547,1.27695841,136.56,136.49,1.46490666]
[1720786890862,8.59915841,136.57,136.49,50.37490666]
[1720786891034,8.59915841,136.57,136.5,45.0]
[1720786891742,8.59915841,136.57,136.51,1.46470262]
[1720786891938,1.27695841,136.57,136.5,45.0]
[1720786892144,1.27695841,136.57,136.52,1.46467214]
[1720786892639,16.612,136.58,136.5,45.0]
[1720786892964,1.27695841,136.57,136.5,45.0]
[1720786893338,16.612,136.58,136.5,45.0]
[1720786893558,17.88895841,136.58,136.51,28.91]
[1720786893741,16.612,136.58,136.52,45.0]
[1720786894864,17.88895841,136.58,136.52,45.0]
[1720786896848,16.612,136.58,136.52,45.0]
[1720786897050,16.612,136.58,136.53,48.91]
[1720786897367,0.2,136.59,136.54,45.0]
[1720786900151,0.2,136.59,136.55,20.0]
[1720786900351,0.2,136.59,136.56,45.0]
[1720786901666,0.2,136.59,136.57,1.32168434]
[1720786901865,0.2,136.59,136.56,45.0]
[1720786902653,0.2,136.59,136.57,14.44]
[1720786902856,0.2,136.59,136.58,45.0]
[1720786903264,0.2,136.59,136.58,59.44]
[1720786903464,0.2,136.59,136.58,45.0]
[1720786903785,0.2,136.59,136.57,14.44]
[1720786903973,0.2,136.59,136.58,45.0]
[1720786904145,0.2,136.59,136.58,59.44]
[1720786906668,0.2,136.59,136.55,20.0]
[1720786906871,0.2,136.59,136.58,14.44]
[1720786907072,0.2,136.59,136.58,59.44]
[1720786907373,0.2,136.59,136.58,45.0]
[1720786907573,0.2,136.59,136.58,59.44]
[1720786909472,0.2,136.59,136.58,80.42986006]
[1720786909976,0.2,136.59,136.58,66.46386694]
[1720786910279,0.2,136.59,136.58,80.90386694]
[1720786912152,0.2,136.59,136.58,79.44]
[1720786915470,15.7595,136.65,136.58,80.90355766]
[1720786915675,15.7595,136.65,136.64,14.44]
[1720786917082,6.3127,136.67,136.64,59.44]
[1720786918282,6.3127,136.67,136.65,14.44]
[1720786919657,2.12420391,136.68,136.65,14.44]
[1720786919862,15.985,136.67,136.65,14.44]
[1720786920052,0.8472455,136.68,136.65,14.44]
[1720786920255,0.8472455,136.68,136.64,45.0]
[1720786920464,0.8472455,136.68,136.66,14.44]